fUSD/lending_fUSD_20251222
["ID","MTS","AMOUNT","RATE_DAILY","PERIOD"]
[399494668,1766414476949,-882.2,0.00043,120]
[399494669,1766414477017,-3110.77702824,0.00043,120]
[399494670,1766414477086,-204.42,0.00043014,120]
[399494671,1766414477154,-991.18584083,0.000431,120]
[399494672,1766414477225,-1000.0,0.000432,120]
[399494673,1766414477299,-2603.6522762,0.000432,120]
[399494674,1766414477369,-1500.0,0.00043221,60]
[399494675,1766414477446,-999.0,0.00043287,120]
[399494676,1766414477512,-176.0,0.000433,120]
[399494677,1766414477577,-157.0,0.000433,120]
[399494678,1766414477646,-1000.0,0.000434,120]
[399494679,1766414477714,-1444.0,0.00043562,120]
[399494680,1766414477779,-200.0,0.00043599,120]
[399494681,1766414477845,-1000.0,0.000436,120]
[399494682,1766414477910,-1304.03618744,0.000436,120]
[399494683,1766414477983,-704.68301796,0.000437,120]
[399494684,1766414478051,-1500.0,0.00043769,60]
[399494685,1766414478120,-900.0,0.00043769,60]
[399494686,1766414478189,-2800.0,0.00043769,60]
[399494687,1766414478258,-157.0,0.000438,120]
[399494688,1766414478325,-1000.0,0.000438,120]
[399494689,1766414478400,-1194.98658859,0.000438,120]
[399494690,1766414478466,-2602.25753715,0.000438,120]
[399494691,1766414478533,-500.0,0.00043835,120]
[399494692,1766414478601,-346.05041508,0.00043835,120]
[399494693,1766414478668,-2910.11,0.00043836,120]
[399494694,1766414478734,-176.0,0.000439,120]
[399494695,1766414478802,-1063.27643077,0.00043987,120]
[399494696,1766414478869,-461.34724018,0.00044,120]
[399494697,1766414478933,-752.19571745,0.00044,120]
[399494698,1766414479000,-570.51323123,0.00044,120]
[399494699,1766414479065,-933.58025923,0.00044,120]
[399494700,1766414479132,-3490.51582783,0.00044,120]
[399494701,1766414479200,-3263.07084291,0.00044,120]
[399494702,1766414479270,-500.0,0.00044,68]
[399494703,1766414479340,-1000.0,0.00044,120]
[399494704,1766414479411,-10000.0,0.00044,120]
[399494705,1766414479482,-2193.22,0.000441,60]
[399494706,1766414479550,-1000.0,0.000442,120]
[399494707,1766414479617,-150.0,0.00044231,120]
[399494708,1766414479681,-158.84020212,0.0004425,120]
[399494709,1766414479746,-150.0,0.00044312,120]
[399494710,1766414479814,-200.0,0.00044349,120]
[399494711,1766414479885,-999.0,0.00044383,120]
[399494712,1766414479957,-176.0,0.000444,120]
[399494713,1766414480029,-157.0,0.000444,120]
[399494714,1766414480101,-1000.0,0.000444,120]
[399494715,1766414480175,-915.76286239,0.000445,120]
[399494716,1766414480252,-234.63808014,0.0004452,120]
[399494717,1766414480321,-1000.0,0.000446,120]
[399494718,1766414480393,-150.0,0.000447,120]
[399494719,1766414480460,-258.7,0.000447,120]
[399494720,1766414480526,-1000.0,0.000448,120]
[399494721,1766414480594,-2224.8521675,0.000448,120]
[399494722,1766414480662,-150.0,0.00044801,120]
[399494723,1766414480729,-1500.0,0.00044865,60]
[399494724,1766414480802,-900.0,0.00044865,60]
[399494725,1766414480869,-2800.0,0.00044865,60]
[399494726,1766414480935,-2683.87365924,0.0004489,120]
[399494727,1766414481000,-157.0,0.000449,120]
[399494728,1766414481069,-1304.03618744,0.000449,120]
[399494729,1766414481141,-588.17113624,0.00045,120]
[399494730,1766414481210,-1110.33894591,0.00045,120]
[399494731,1766414481276,-467.00868415,0.00045,120]
[399494732,1766414481343,-349.49813136,0.00045,60]
[399494733,1766414481411,-1008.9780545,0.00045,120]
[399494734,1766414481480,-176.0,0.00045,120]
[399494735,1766414481549,-223.0,0.00045,120]
[399494736,1766414481618,-200.0,0.00045,120]
[399494737,1766414481686,-500.0,0.00045,69]
[399494738,1766414482120,-1000.0,0.00045,120]
[399494739,1766414482191,-562.75,0.00045,120]
[399494740,1766414482261,-1502.62395979,0.00045,120]
[399494741,1766414482328,-500.0,0.00045,120]
[399494742,1766414482401,-290.87,0.00045,120]
[399494743,1766414482469,-328.03699378,0.00045,120]
[399494744,1766414482538,-2000.0,0.00045,60]
[399494745,1766414482604,-17230.43,0.00045,120]
[399494746,1766414482669,-10000.0,0.00045,120]
[399494747,1766414482732,-1107.37,0.00045,120]
[399494748,1766414482795,-150.0,0.00045,120]
[399494749,1766414482859,-469.06,0.00045,120]
[399494750,1766414482924,-3199.10932498,0.00045,120]
[399494751,1766414482987,-2347.82633433,0.00045,120]
[399494752,1766414483053,-1077.42,0.00045,120]
[399494753,1766414483118,-521.0,0.00045,120]
[399494754,1766414483187,-600.0,0.00045,120]
[399494755,1766414483258,-2000.0,0.00045,120]
[399494756,1766414483329,-1349.3551474,0.00045,120]
[399494757,1766414483403,-200.0,0.00045099,120]
[399494758,1766414483469,-401.43838045,0.000451,120]
[399494759,1766414483537,-2097.73184539,0.000452,120]
[399494760,1766414483605,-1000.0,0.000452,120]
[399494761,1766414483672,-218.33453151,0.00045308,120]
[399494762,1766414483741,-157.0,0.000454,120]
[399494763,1766414483807,-1000.0,0.000454,120]
[399494764,1766414483874,-999.0,0.00045479,120]
[399494765,1766414483940,-1008.22467325,0.000455,120]
[399494766,1766414484013,-176.0,0.000455,120]
[399494767,1766414484085,-189680.1814635,0.000455,120]
[399494768,1766414498749,-500.0,0.00012393,2]
[399494769,1766414498758,-717.29571367,0.000135,2]
[399494770,1766414498774,-282.70428633,0.000135,2]
[399494771,1766414498783,-754.45002617,0.00013609,2]
[399494772,1766414498795,-9650.26997383,0.00013609,2]
[399494773,1766414498804,-166.66,0.00013804,2]
[399494774,1766414498813,-1500.0,0.00014,2]
[399494775,1766414498823,-1050.83828415,0.00014,2]
[399494776,1766414498832,-1048.1,0.00014078,2]
[399494777,1766414498841,-166.66,0.00014094,2]
[399494778,1766414498852,-150.27,0.00014204,2]
[399494779,1766414498861,-2270.36213635,0.0001421,7]
[399494780,1766414498871,-500.0,0.000143,2]
[399494781,1766414498880,-166.66,0.00014385,2]
[399494782,1766414498890,-1098.0,0.0001448,2]
[399494783,1766414498900,-400.0,0.00014505,2]
[399494784,1766414498910,-1423.0,0.00014533,2]
[399494785,1766414498919,-195.0,0.00014534,2]
[399494786,1766414498929,-309.0,0.00014563,2]
[399494787,1766414498938,-16.31184056,0.00014571,2]
[399494788,1766414498950,-211.28192185,0.00014571,2]
[399494789,1766414498959,-224.0,0.0001462,2]
[399494790,1766414498969,-765.19,0.00014626,2]
[399494791,1766414498979,-344.0,0.00014649,2]
[399494792,1766414498988,-333.10804311,0.00014663,2]
[399494793,1766414498998,-187.09457033,0.00014663,2]
[399494794,1766414499007,-166.66,0.00014676,2]
[399494795,1766414499016,-153.258282,0.0001473,2]
[399494796,1766414499025,-73617.70064821,0.00014731,2]
[399494797,1766414499044,-1538.8427499,0.00014731,2]
[399494798,1766414499055,-6880.14962709,0.00014731,2]
[399494799,1766414499070,-5081.92822452,0.00014731,2]
[399494800,1766414499406,-454.43441823,0.00014731,2]
[399494801,1766414499418,-4176.20288896,0.00014731,2]
[399494802,1766414499430,-500.0,0.00014731,2]
[399494803,1766414499441,-11001.97973585,0.00014731,2]
[399494804,1766414499453,-100946.58822782,0.00014731,2]
[399494805,1766414499464,-2578.60560507,0.00014731,2]
[399494806,1766414499475,-10618.21986627,0.00014731,2]
[399494807,1766414499487,-7967.72470494,0.00014731,2]
[399494808,1766414499497,-15120.03553679,0.00014731,2]
[399494809,1766414499508,-16785.15192604,0.00014731,2]
[399494810,1766414499519,-11642.27815851,0.00014731,2]
[399494811,1766414499529,-6003.3091171,0.00014731,2]
[399494812,1766414499541,-1480.46807063,0.00014731,2]
[399494813,1766414499552,-1807.19031194,0.00014731,2]
[399494814,1766414499597,-721799.19018213,0.00014731,2]
[399494815,1766414499611,-158.0,0.00014763,2]
[399494816,1766414499620,-220.0,0.00014794,2]
[399494817,1766414499629,-18786.61,0.00014831,2]
[399494818,1766414499638,-208.29,0.00014906,2]
[399494819,1766414499647,-333.10804304,0.00014912,2]
[399494820,1766414499657,-1190.53,0.00014951,2]
[399494821,1766414499666,-166.66,0.00014966,2]
[399494822,1766414499676,-150.27,0.00014993,2]
[399494823,1766414499685,-463.0,0.00015082,2]
[399494824,1766414499695,-333.10804304,0.0001516,2]
[399494825,1766414499704,-1098.0,0.00015242,2]
[399494826,1766414499713,-166.66,0.00015257,2]
[399494827,1766414499722,-1873.72,0.0001531,2]
[399494828,1766414499731,-820.0,0.00015312,2]
[399494829,1766414499740,-269.0,0.00015342,2]
[399494830,1766414499749,-333.10804304,0.00015409,2]
[399494831,1766414499758,-1000.0,0.00015437,2]
[399494832,1766414499767,-381.73661083,0.00015441,2]
[399494833,1766414499777,-357.02796105,0.00015441,2]
[399494834,1766414499786,-1785.68,0.00015491,2]
[399494835,1766414499796,-1785.68,0.00015491,2]
[399494836,1766414499805,-1785.68,0.00015491,2]
[399494837,1766414499815,-1785.68,0.00015491,2]
[399494838,1766414499823,-859.0,0.00015541,2]
[399494839,1766414499833,-668.0,0.00015572,2]
[399494840,1766414499842,-357.02796096,0.00015603,2]
[399494841,1766414499854,-1852.42,0.0001561,2]
[399494842,1766414499864,-333.10804304,0.00015657,2]
[399494843,1766414499874,-1177.65810365,0.00015691,5]
[399494844,1766414499883,-531.25264543,0.00015701,2]
[399494845,1766414499892,-357.02796096,0.00015765,2]
[399494846,1766414499902,-187.09457033,0.00015782,2]
[399494847,1766414499911,-150.27,0.00015782,2]
[399494848,1766414499920,-151.0,0.00015839,2]
[399494849,1766414499929,-151.0,0.00015839,2]
[399494850,1766414499938,-151.0,0.00015839,2]
[399494851,1766414499947,-244.0,0.0001584,2]
[399494852,1766414499956,-174.0,0.0001584,2]
[399494853,1766414499965,-1319.0,0.00015871,2]
[399494854,1766414499975,-474.0,0.00015904,2]
[399494855,1766414499984,-270.0,0.00015904,2]
[399494856,1766414499992,-333.10804304,0.00015906,2]
[399494857,1766414500002,-357.02796096,0.00015927,2]
[399494858,1766414500010,-151.47080458,0.00015933,2]
[399494859,1766414500020,-34113.39211835,0.00016,4]
[399494860,1766414500029,-1098.0,0.00016044,2]
[399494861,1766414500039,-357.02796096,0.00016089,2]
[399494862,1766414500048,-333.10804304,0.00016154,2]
[399494863,1766414500058,-5000.00168052,0.000162,5]
[399494864,1766414500067,-357.02796096,0.00016252,2]
[399494865,1766414500076,-200.0,0.0001634,2]
[399494866,1766414500085,-1262.0,0.00016351,2]
[399494867,1766414500094,-518.0,0.00016351,2]
[399494868,1766414500108,-911.0,0.00016351,2]
[399494869,1766414500117,-1198.0,0.00016351,2]
[399494870,1766414500127,-333.10804304,0.00016403,2]
[399494871,1766414500136,-357.02796096,0.00016414,2]
[399494872,1766414500145,-1530.9,0.00016438,2]
[399494873,1766414500155,-500.0,0.00016438,2]
[399494874,1766414500164,-500.0,0.00016438,2]
[399494875,1766414500178,-500.0,0.00016438,2]
[399494876,1766414500187,-500.0,0.00016438,2]
[399494877,1766414500196,-500.0,0.00016438,2]
[399494878,1766414500205,-500.0,0.00016438,2]
[399494879,1766414500218,-500.0,0.00016438,2]
[399494880,1766414500228,-500.0,0.00016438,2]
[399494881,1766414500236,-500.0,0.00016438,2]
[399494882,1766414500247,-500.0,0.00016438,2]
[399494883,1766414500257,-263.15284989,0.00016438,2]
[399494884,1766414500266,-500.0,0.00016438,2]
[399494885,1766414500275,-500.0,0.00016438,2]
[399494886,1766414500285,-500.0,0.00016438,2]
[399494887,1766414500294,-500.0,0.00016438,2]
[399494888,1766414500304,-500.0,0.00016438,2]
[399494889,1766414500313,-500.0,0.00016438,2]
[399494890,1766414500322,-500.0,0.00016438,2]
[399494891,1766414500331,-500.0,0.00016438,2]
[399494892,1766414500341,-500.0,0.00016438,2]
[399494893,1766414500352,-500.0,0.00016438,2]
[399494894,1766414500362,-500.0,0.00016438,2]
[399494895,1766414500371,-500.0,0.00016438,2]
[399494896,1766414500380,-500.0,0.00016438,2]
[399494897,1766414500390,-500.0,0.00016438,2]
[399494898,1766414500399,-500.0,0.00016438,2]
[399494899,1766414500408,-500.0,0.00016438,2]
[399494900,1766414500418,-500.0,0.00016438,2]
[399494901,1766414500428,-600.0,0.00016438,2]
[399494902,1766414500438,-800.0,0.00016438,2]
[399494903,1766414500447,-150.27,0.00016571,2]
[399494904,1766414500457,-357.02796096,0.00016576,2]
[399494905,1766414500467,-358.71934003,0.000166,2]
[399494906,1766414500476,-333.10804304,0.00016651,2]
[399494907,1766414500486,-5233.98938151,0.0001666,2]
[399494908,1766414500495,-150.0,0.00016699,2]
[399494909,1766414500505,-150.0,0.00016699,2]
[399494910,1766414500515,-150.0,0.00016699,2]
[399494911,1766414500523,-150.0,0.00016699,2]
[399494912,1766414500533,-150.0,0.00016699,2]
[399494913,1766414500542,-1797.0,0.00016699,2]
[399494914,1766414500551,-1797.0,0.00016699,2]
[399494915,1766414500561,-1797.0,0.00016699,2]
[399494916,1766414500571,-1797.0,0.00016699,2]
[399494917,1766414500580,-1797.0,0.00016699,2]
[399494918,1766414500590,-1797.0,0.00016699,2]
[399494919,1766414500601,-1797.0,0.00016699,2]
[399494920,1766414500610,-150.0,0.00016699,2]
[399494921,1766414500619,-1797.0,0.00016699,2]
[399494922,1766414500628,-1797.0,0.00016699,2]
[399494923,1766414500637,-500.0,0.00016699,2]
[399494924,1766414500647,-150.0,0.00016699,2]
[399494925,1766414500656,-1797.0,0.00016699,2]
[399494926,1766414500665,-150.0,0.00016699,2]
[399494927,1766414500674,-1797.0,0.00016699,2]
[399494928,1766414500684,-1797.0,0.00016699,2]
[399494929,1766414500697,-1797.0,0.00016699,2]
[399494930,1766414500706,-1797.0,0.00016699,2]
[399494931,1766414500715,-1797.0,0.00016699,2]
[399494932,1766414500724,-1797.0,0.00016699,2]
[399494933,1766414500734,-1797.0,0.00016699,2]
[399494934,1766414500743,-1797.0,0.00016699,2]
[399494935,1766414500753,-1797.0,0.00016699,2]
[399494936,1766414500763,-1797.0,0.00016699,2]
[399494937,1766414500772,-1797.0,0.00016699,2]
[399494938,1766414500782,-1797.0,0.00016699,2]
[399494939,1766414500792,-1797.0,0.00016699,2]
[399494940,1766414500801,-1817.0,0.00016699,2]
[399494941,1766414500810,-174.369,0.00016712,2]
[399494942,1766414500819,-850.456,0.00016712,2]
[399494943,1766414500829,-481.25,0.00016712,2]
[399494944,1766414500838,-481.25,0.00016712,2]
[399494945,1766414500850,-481.25,0.00016712,2]
[399494946,1766414500859,-481.25,0.00016712,2]
[399494947,1766414500869,-481.25,0.00016712,2]
[399494948,1766414500879,-481.25,0.00016712,2]
[399494949,1766414500889,-164.38,0.00016712,2]
[399494950,1766414500898,-194.17176914,0.00016726,2]
[399494951,1766414500907,-150.0,0.00016726,2]
[399494952,1766414500917,-150.0,0.00016726,2]
[399494953,1766414500928,-150.0,0.00016726,2]
[399494954,1766414500937,-150.0,0.00016726,2]
[399494955,1766414500947,-150.0,0.00016726,2]
[399494956,1766414500956,-500.0,0.00016726,2]
[399494957,1766414500965,-150.0,0.00016726,2]
[399494958,1766414500975,-357.02796096,0.00016738,2]
[399494959,1766414500984,-150.0,0.00016754,2]
[399494960,1766414500994,-150.0,0.00016754,2]
[399494961,1766414501003,-226.0,0.00016754,2]
[399494962,1766414501013,-150.0,0.00016754,2]
[399494963,1766414501023,-168.0,0.00016826,2]
[399494964,1766414501032,-200.0,0.00016864,2]
[399494965,1766414501041,-1098.0,0.00016889,2]
[399494966,1766414501050,-166.0,0.000169,2]
[399494967,1766414501059,-166.0,0.000169,2]
[399494968,1766414501069,-166.0,0.000169,2]
[399494969,1766414501078,-167.31,0.000169,2]
[399494970,1766414501087,-170.0,0.000169,2]
[399494971,1766414501097,-769.37655526,0.000169,2]
[399494972,1766414501108,-357.02796096,0.000169,2]
[399494973,1766414501117,-333.10804304,0.000169,2]
[399494974,1766414501126,-321.54063254,0.000169,2]
[399494975,1766414501135,-187.09457033,0.000169,2]
[399494976,1766414501145,-6778.0,0.000169,2]
[399494977,1766414501154,-168.0,0.00016924,2]
[399494978,1766414501165,-945.6679641,0.00016948,2]
[399494979,1766414501174,-500.0,0.00016972,2]
[399494980,1766414501184,-500.0,0.00016973,2]
[399494981,1766414501197,-500.0,0.00016973,2]
[399494982,1766414501208,-500.0,0.00016973,2]
[399494983,1766414501217,-500.0,0.00016973,2]
[399494984,1766414501227,-500.0,0.00016973,2]
[399494985,1766414501238,-500.0,0.00016973,2]
[399494986,1766414501248,-500.0,0.00016973,2]
[399494987,1766414501259,-500.0,0.00016973,2]
[399494988,1766414501517,-500.0,0.00016973,2]
[399494989,1766414501527,-500.0,0.00016973,2]
[399494990,1766414501537,-500.0,0.00016973,2]
[399494991,1766414501547,-500.0,0.00016973,2]
[399494992,1766414501556,-500.0,0.00016973,2]
[399494993,1766414501566,-500.0,0.00016973,2]
[399494994,1766414501576,-500.0,0.00016973,2]
[399494995,1766414501585,-500.0,0.00016973,2]
[399494996,1766414501595,-500.0,0.00016973,2]
[399494997,1766414501608,-500.0,0.00016973,2]
[399494998,1766414501619,-575.25123354,0.00016973,2]
[399494999,1766414501628,-220.3394429,0.00016973,2]
[399495000,1766414501638,-500.0,0.00016973,2]
[399495001,1766414501647,-500.0,0.00016973,2]
[399495002,1766414501656,-500.0,0.00016973,2]
[399495003,1766414501666,-500.0,0.00016973,2]
[399495004,1766414501676,-500.0,0.00016973,2]
[399495005,1766414501685,-500.0,0.00016973,2]
[399495006,1766414501695,-500.0,0.00016973,2]
[399495007,1766414501704,-500.0,0.00016973,2]
[399495008,1766414501714,-566.4005916,0.00016973,2]
[399495009,1766414501723,-166.96828513,0.00016973,2]
[399495010,1766414501733,-150.0,0.00016973,2]
[399495011,1766414501744,-150.0,0.00016973,2]
[399495012,1766414501754,-632.39,0.00016986,2]
[399495013,1766414501764,-335.24044235,0.00016999,2]
[399495014,1766414501774,-300.0,0.00016999,2]
[399495015,1766414501783,-300.0,0.00016999,2]
[399495016,1766414501793,-666.0,0.00016999,2]
[399495017,1766414501802,-500.0,0.00016999,2]
[399495018,1766414501812,-578.59832559,0.00016999,2]
[399495019,1766414501822,-300.0,0.00016999,2]
[399495020,1766414501831,-1785.68,0.00016999,2]
[399495021,1766414501841,-1785.68,0.00016999,2]
[399495022,1766414501852,-300.0,0.00016999,2]
[399495023,1766414501861,-681.43055394,0.00016999,2]
[399495024,1766414501871,-283521.81340484,0.00017,2]
[399495025,1766414501881,-11011.4574307,0.00017,2]
[399495026,1766414501890,-250.0,0.00017,2]
[399495027,1766414501901,-8381.5850466,0.00017,2]
[399495028,1766414501911,-200.0,0.00017,2]
[399495029,1766414501924,-2000.0,0.00017,2]
[399495030,1766414501933,-4660896.11807072,0.00017,2]
[399495031,1766414502107,-1655.35490122,0.00017,2]
[399495032,1766414502119,-4337.20429625,0.00017,2]
[399495033,1766414502131,-3571.52766994,0.00017,2]
[399495034,1766414502146,-5768.68478496,0.00017,2]
[399495035,1766414502159,-6725.39,0.00017,2]
[399495036,1766414502172,-919.39818052,0.00017,2]
[399495037,1766414502184,-1187.49363616,0.00017,2]
[399495038,1766414502195,-1736.33370989,0.00017,2]
[399495039,1766414502207,-14287.24589999,0.00017,2]
[399495040,1766414502276,-585688.11746844,0.00017,2]
[399495041,1766414502291,-457.93013366,0.00017,2]
[399495042,1766414502313,-11989.8144285,0.00017,2]
[399495043,1766414502422,-351.5521247,0.00017,2]
[399495044,1766414507097,160.43,6.771e-05,2]
[399495045,1766414507147,160.43,7.523e-05,2]
[399495046,1766414507193,160.43,8.275e-05,2]
[399495047,1766414507242,160.43,9.028e-05,2]
[399495048,1766414507284,160.43,9.78e-05,2]
[399495049,1766414520767,999.0,0.00013134,3]
[399495050,1766414529169,208.0,6.771e-05,2]
[399495051,1766414534403,250.0,7.448e-05,2]
[399495052,1766414534503,250.0,8.652e-05,2]
[399495053,1766414541159,151.0,0.0001,2]
[399495054,1766414541770,151.0,0.0001,2]
[399495055,1766414542395,151.0,0.0001,2]
[399495056,1766414543008,151.0,0.0001,2]
[399495057,1766414543650,151.0,0.0001,2]
[399495058,1766414544275,151.0,0.0001,2]
[399495059,1766414544921,151.0,0.0001,2]
[399495060,1766414545579,151.0,0.0001,2]
[399495061,1766414546231,151.0,0.0001,2]
[399495062,1766414546851,151.0,0.0001,2]
[399495063,1766414547716,151.0,0.0001,2]
[399495064,1766414548239,151.0,0.0001,2]
[399495065,1766414548872,151.0,0.0001,2]
[399495071,1766415031595,-236.0,0.00010532,2]
[399495072,1766415031605,-160.43,0.00010532,2]
[399495073,1766415031616,-202.01007945,0.00011104,2]
[399495074,1766415031745,-97.98992055,0.00011104,2]
[399495075,1766415031755,-160.43,0.00011285,2]
[399495076,1766415031765,-195.0,0.00011585,2]
[399495077,1766415031774,-273.47724663,0.00011585,2]
[399495078,1766415031786,-26.52275337,0.00011585,2]
[399495079,1766415031795,-160.43,0.00012037,2]
[399495080,1766415031806,-500.0,0.00012293,2]
[399495081,1766415031816,-300.0,0.00012724,2]
[399495082,1766415031826,-1200.0,0.00012724,2]
[399495083,1766415031835,-8499.97442828,0.00012725,2]
[399495084,1766415031847,-2087.92790872,0.00012725,2]
[399495085,1766415031856,-160.43,0.00012789,2]
[399495086,1766415031866,-150.0,0.00012902,2]
[399495087,1766415031876,-3240.0,0.00012908,2]
[399495088,1766415031885,-311.0,0.00012983,2]
[399495089,1766415031895,-300.0,0.00013061,2]
[399495090,1766415031905,-150.0,0.00013096,2]
[399495091,1766415031915,-237.44806942,0.00013108,2]
[399495092,1766415031924,-1472.0,0.000132,2]
[399495093,1766415031935,-1500.0,0.00013231,2]
[399495094,1766415031944,-1479.0,0.00013286,2]
[399495095,1766415031953,-491.0,0.00013312,2]
[399495096,1766415031963,-200.0,0.00013471,2]
[399495097,1766415031972,-166.67,0.00013501,2]
[399495098,1766415031981,-160.43,0.00013542,2]
[399495099,1766415031991,-490.0,0.00013671,2]
[399495100,1766415032000,-445.92,0.00013699,2]
[399495101,1766415032009,-720.0,0.00013996,2]
[399495102,1766415032019,-193.75,0.00014066,2]
[399495103,1766415032028,-150.0,0.00014066,2]
[399495104,1766415032037,-500.0,0.00014071,2]
[399495105,1766415032046,-200.0,0.00014071,2]
[399495106,1766415032056,-200.0,0.00014071,2]
[399495107,1766415032066,-299.21427027,0.00014071,2]
[399495108,1766415032075,-151.0,0.00014071,2]
[399495109,1766415032084,-151.0,0.00014071,2]
[399495110,1766415032094,-151.0,0.00014071,2]
[399495111,1766415032103,-151.0,0.00014071,2]
[399495112,1766415032113,-50.69847122,0.00014071,2]
[399495113,1766415032124,-100.30152878,0.00014071,2]
[399495114,1766415032133,-151.0,0.00014071,2]
[399495115,1766415032142,-151.0,0.00014071,2]
[399495116,1766415032151,-151.0,0.00014071,2]
[399495117,1766415032160,-151.0,0.00014071,2]
[399495118,1766415032169,-151.0,0.00014071,2]
[399495119,1766415032178,-151.0,0.00014071,2]
[399495120,1766415032188,-108.71056166,0.00014071,2]
[399495122,1766415037670,-42.28943834,0.00014071,2]
[399495123,1766415037679,-151.0,0.00014071,2]
[399495124,1766415037689,-1480.0,0.00014151,2]
[399495125,1766415037698,-992.0,0.00014179,2]
[399495126,1766415037707,-394.0,0.00014208,2]
[399495127,1766415037717,-1592.0,0.00014236,2]
[399495128,1766415037727,-166.67,0.00014243,2]
[399495129,1766415037736,-1165.0,0.00014264,2]
[399495130,1766415037745,-728.0,0.00014292,2]
[399495131,1766415037754,-500.0,0.00014292,2]
[399495132,1766415038010,-500.0,0.000143,2]
[399495133,1766415038032,-500.0,0.000143,2]
[399495134,1766415038042,-500.0,0.000143,2]
[399495135,1766415038051,-165.8458301,0.000143,2]
[399495136,1766415038061,-2500.0,0.00014531,2]
[399495137,1766415038072,-327.20280924,0.00014531,2]
[399495138,1766415038081,-210.051223,0.00014531,2]
[399495139,1766415038091,-301.14347434,0.00014531,2]
[399495140,1766415038100,-194.38188986,0.00014531,2]
[399495141,1766415038110,-500.0,0.00014628,2]
[399495142,1766415038119,-500.0,0.00014628,2]
[399495143,1766415038129,-500.0,0.00014628,2]
[399495144,1766415038139,-500.0,0.00014628,2]
[399495145,1766415038148,-500.0,0.00014628,2]
[399495146,1766415038158,-500.0,0.00014628,2]
[399495147,1766415038167,-500.0,0.00014628,2]
[399495148,1766415038176,-500.0,0.00014628,2]
[399495149,1766415038186,-500.0,0.00014628,2]
[399495150,1766415038196,-239.38533024,0.00014628,2]
[399495151,1766415038205,-500.0,0.00014628,2]
[399495152,1766415038215,-500.0,0.00014628,2]
[399495153,1766415038225,-500.0,0.00014628,2]
[399495154,1766415038235,-500.0,0.00014628,2]
[399495155,1766415038245,-500.0,0.00014628,2]
[399495156,1766415038255,-500.0,0.00014628,2]
[399495157,1766415038264,-500.0,0.00014628,2]
[399495158,1766415038274,-500.0,0.00014628,2]
[399495159,1766415038283,-500.0,0.00014628,2]
[399495160,1766415038293,-500.0,0.00014628,2]
[399495161,1766415038303,-500.0,0.00014628,2]
[399495162,1766415038312,-500.0,0.00014628,2]
[399495163,1766415038323,-500.0,0.00014628,2]
[399495164,1766415038336,-500.0,0.00014628,2]
[399495165,1766415038346,-500.0,0.00014628,2]
[399495166,1766415038356,-500.0,0.00014628,2]
[399495167,1766415038367,-500.0,0.00014628,2]
[399495168,1766415038377,-500.0,0.00014628,2]
[399495169,1766415038387,-596.75,0.00014628,2]
[399495170,1766415038401,-179.13896705,0.0001463,2]
[399495171,1766415038420,-290.62964638,0.0001463,2]
[399495172,1766415038430,-42888.82307506,0.00014631,2]
[399495173,1766415038443,-5166.6679344,0.00014631,2]